Cogmind - Beta 14 @@@ ROGUE MODE // 2024.08.10 @ 22:21:50 Player: saltine Result: Destroyed by 3N-AWM(x) with Makeshift Spear Performance ------------- Evolutions (0) 0 Regions Visited (4) 800 Robots Destroyed (23) 115 Value Destroyed (524) 524 Prototype IDs (19) 380 Alien Tech Used (0) 0 Bonus (300) 300 TOTAL SCORE: 2119 Bonus ------- Registered with UFD 300 Cogmind --------- Core Integrity 0/250 Matter 294/300 Energy 125/125 System Corruption 0% Temperature Cool (0) Movement Core (750) Ox14 Location -8/Scraptown Parts ------- > --- POWER (1) -------- Light Ion Engine > --- PROPULSION (2) --- (None) > --- UTILITY (2) ------ High-capacity Storage Unit Surveybot 17 Chip > --- WEAPON (2) ------- (None) > --- INVENTORY (20) --- Subdweller Power Source Light Treads Light Treads Light Treads Improved Treads Improved Treads Improved Treads Wheel Hardened Light Armor Plating Hardened Light Armor Plating Hardened Light Armor Plating A0-MCA's Component Scanner Subdweller Laser Pulse Rifle Subdweller Beam Cannon Subdweller Beam Cannon Battle Cannon Missile Launcher Multitool Peak State ------------ > --- POWER ------------ Light Ion Engine > --- PROPULSION ------- Light Treads Improved Treads > --- UTILITY ---------- High-capacity Storage Unit Gun Armor > --- WEAPON ----------- Beam Cannon Barrage Gun Makeshift Shrapnel Gun Assault Cannon > --- INVENTORY -------- Subdweller Power Source Light Treads Light Treads Light Treads Improved Treads Improved Treads Improved Treads Wheel Hardened Light Armor Plating Hardened Light Armor Plating Hardened Light Armor Plating A0-MCA's Component Scanner Subdweller Laser Pulse Rifle Subdweller Beam Cannon Subdweller Beam Cannon Battle Cannon Missile Launcher Multitool [Rating: 29] Favorites ----------- Power Light Ion Engine Engine Light Ion Engine Propulsion Light Treads Treads Light Treads Leg Aluminum Leg Utility High-capacity Storage Unit Storage High-capacity Storage Unit Processor Surveybot 17 Chip Protection Gun Armor Weapon Beam Cannon Energy Gun Small Laser Energy Cannon Beam Cannon Ballistic Gun Makeshift Shrapnel Gun Ballistic Cannon Battle Cannon Special Weapon Mining Laser Build | -11 -10 -10 -8 -8 ------- Run | Yrd Mat Sub Rec Scr Slots Evolved . | . . . . . Power . | . . . . . Propulsion . | . . . . . Utility . | . . . . . Weapon . | . . . . . Parts Attached 21 | 2 7 10 . 2 Power 3 | . 1 2 . . Engine 3 | . 1 2 . . Core . | . . . . . Reactor . | . . . . . Propulsion 5 | 2 1 2 . . Treads 5 | 2 1 2 . . Leg . | . . . . . Wheel . | . . . . . Hover . | . . . . . Flight . | . . . . . Utility 5 | . 3 1 . 1 Device . | . . . . . Storage 2 | . 2 . . . Processor 1 | . . . . 1 Hackware . | . . . . . Protection 2 | . 1 1 . . Artifact . | . . . . . Weapon 8 | . 2 5 . 1 Energy Gun . | . . . . . Energy Cannon 2 | . 1 1 . . Ballistic Gun 3 | . 1 2 . . Ballistic Cannon 2 | . . 1 . 1 Launcher . | . . . . . Special Weapon 1 | . . 1 . . Impact Weapon . | . . . . . Slashing Weapon . | . . . . . Piercing Weapon . | . . . . . Special Melee Weapon . | . . . . . Unidentified Prototypes . | . . . . . Parts Lost 10 | . 1 4 . 5 Power 2 | . . 2 . . Propulsion 3 | . . 1 . 2 Utility . | . . . . . Weapon 5 | . 1 1 . 3 Highest Loss Streak 5 | . 1 2 . 5 To Critical Strikes . | . . . . . Average Slot Usage (%) 97 | . 90 99 100 99 Engine 12 | . 13 13 11 11 Treads 25 | . 27 26 22 21 Storage 12 | . 14 13 11 11 Protection 10 | . 4 13 11 10 Energy Gun 3 | . 12 . . . Energy Cannon 11 | . 7 15 11 10 Ballistic Gun 12 | . 7 7 22 21 Ballistic Cannon 5 | . . 4 11 10 Special Weapon 1 | . . 3 . . Peak Build Rating 29 | 6 10 27 27 29 Average Rating 17 | 6 7 14 27 27 On Entrance 15 | 6 6 10 27 27 Naked Turns . | . . . . . Heaviest Build 60 | 11 52 60 58 60 Greatest Support 43 | 40 40 43 43 43 Greatest Overweight (x) 1 | . 1 1 1 1 Average Overweight (x) . | . . 1 1 1 Largest Inventory Capacity 20 | 8 20 20 20 20 Average Capacity 18 | 8 16 20 20 20 Most Carried 20 | 6 20 20 20 20 Average Carried 17 | 5 13 19 19 19 Final Capacity 20 | 8 20 20 20 20 Final Carried 20 | 4 20 17 20 19 Class Distribution -------------------- 58% | Mutant 41% | Gunner Dominant Class ---------------- Mutant | -10/Materials Mutant | -10/Subcaves Gunner | -8/Recycling Gunner | -8/Scraptown Resources | -11 -10 -10 -8 -8 ----------- Run | Yrd Mat Sub Rec Scr Matter Collected 569 | 220 59 269 21 . Remotely . | . . . . . Salvage Created 725 | . 377 348 . . Parts 44 | . 15 29 . . Haulers Intercepted 2 | . 2 . . . Recyclers Shooed . | . . . . . Parts Field Recycled . | . . . . . Retrieved Matter . | . . . . . Parts Self-Destructed 10 | . . 10 . . Prevented . | . . . . . Kills | -11 -10 -10 -8 -8 ------- Run | Yrd Mat Sub Rec Scr Combat Hostiles Destroyed 19 | . 8 11 . . Guns 11 | . 8 3 . . Cannons 8 | . . 8 . . Classes Destroyed 5 | . 3 2 . . Hauler 2 | . 2 . . . Turret 2 | . . 2 . . Swarmer 9 | . 3 6 . . Grunt 5 | . 5 . . . Subdweller 5 | . . 5 . . Best Kill Streak 5 | . 3 5 . . Combat Bots Only 3 | . 3 3 . . Max Kills in Single Turn 1 | . 1 1 . . Gunslinging . | . . . . . Exploded . | . . . . . Melee . | . . . . . Uniques/NPCs Destroyed . | . . . . . Combat | -11 -10 -10 -8 -8 -------- Run | Yrd Mat Sub Rec Scr Hostile Shots Fired 214 | . 52 109 . 53 Missed 65 | . 13 35 . 17 Damage Taken 1764 | . 391 776 . 597 Core 276 | . 74 77 . 125 Absorbed by Shields . | . . . . . Core Remaining (%) 100 | 100 . . . . Volleys Fired 93 | . 47 42 . 4 Largest 4 | . 2 4 . 1 Hottest 151 | . 90 151 . 44 Shots Fired 197 | . 92 101 . 4 Gun 136 | . 91 45 . . Cannon 60 | . 1 55 . 4 Launcher . | . . . . . Special 1 | . . 1 . . Kinetic 72 | . 9 59 . 4 Thermal 125 | . 83 42 . . Explosive . | . . . . . Electromagnetic . | . . . . . Robot Hit Streak 15 | . 5 15 . . Robot Miss Streak 7 | . 4 7 . . Penetration Max . | . . . . . Secondary Targets 2 | . 2 . . . Max Gunslinging Chain 1 | . 1 . . . Shots Hit Robots 104 | . 50 54 . . Core Hits 41 | . 18 23 . . Critical Kills . | . . . . . Critical Parts Destroyed . | . . . . . Critical Strikes 2 | . 2 . . . Burn 2 | . 2 . . . Melee Attacks . | . . . . . Impact . | . . . . . Slashing . | . . . . . Piercing . | . . . . . Sneak Attacks . | . . . . . Combat Hostiles . | . . . . . Follow-up Attacks . | . . . . . Damage Inflicted 1471 | . 582 878 . 11 Guns 818 | . 565 253 . . Cannons 642 | . 17 625 . . Explosions . | . . . . . Melee . | . . . . . Ramming 11 | . . . . 11 Kinetic 419 | . 34 385 . . Thermal 1041 | . 548 493 . . Explosive . | . . . . . Electromagnetic . | . . . . . Impact . | . . . . . Slashing . | . . . . . Piercing . | . . . . . Highest Corruption . | . . . . . Average Corruption . | . . . . . Corruption Purged . | . . . . . Corruption Blocked . | . . . . . Overload Shots . | . . . . . Overflow Damage 19 | . . 19 . . Projectiles 19 | . . 19 . . Explosions . | . . . . . Melee . | . . . . . Knockbacks 1 | . . 1 . . Impact . | . . . . . Kinetic 1 | . . 1 . . Secondary . | . . . . . Self-Inflicted Damage . | . . . . . Shots . | . . . . . Rammed 4 | . . . . 4 Targets Rammed 4 | . . . . 4 Kicked . | . . . . . Crushed . | . . . . . Highest Temperature 298 | . 298 104 . 12 Average Temperature 85 | . 112 27 . 7 Received Heat Transfer 372 | . 156 216 . . Siege Activations . | . . . . . Robots Corrupted . | . . . . . Combat Hostiles . | . . . . . Parts Fried . | . . . . . Impact Corruptions . | . . . . . Robots Melted . | . . . . . Combat Hostiles . | . . . . . Parts Melted 9 | . 6 3 . . Heat Transferred 2561 | . 1562 999 . . Parts Sabotaged . | . . . . . Parts Stolen . | . . . . . Parts Stripped . | . . . . . Power Chain Reactions . | . . . . . Alert | -11 -10 -10 -8 -8 ------- Run | Yrd Mat Sub Rec Scr Peak Influence 214 | . 214 . 49 . Initial 49 | . . . 49 . Average 57 | . 59 . 49 . Maximum Alert Level 1 | . 1 . . . Low Security (%) 96 | 100 96 . 100 . Level 1 3 | . 3 . . . Level 2 . | . . . . . Level 3 . | . . . . . Level 4 . | . . . . . Level 5 . | . . . . . High Security . | . . . . . Max Security . | . . . . . Squads Dispatched 4 | . 4 . . . Investigation 1 | . 1 . . . Extermination . | . . . . . Reinforcement 3 | . 3 . . . Assault . | . . . . . Garrison . | . . . . . Intercept . | . . . . . Searches Triggered . | . . . . . Construction Impeded . | . . . . . Haulers Reinforced . | . . . . . Active Scanning Responses . | . . . . . Cargo Convoy Interrupts . | . . . . . Stealth | -11 -10 -10 -8 -8 --------- Run | Yrd Mat Sub Rec Scr Distress Signals 2 | . 2 . . . Communications Jammed . | . . . . . Distress Signals . | . . . . . Times Spotted 32 | . 15 14 . 3 Peak Tracking Total 5 | . 3 5 . 3 Tactical Retreats 5 | . 3 2 . . Traps | -11 -10 -10 -8 -8 ------- Run | Yrd Mat Sub Rec Scr Traps Triggered 2 | . 1 1 . . Indirectly . | . . . . . Trap Hack Attempts . | . . . . . Triggered . | . . . . . Disarmed . | . . . . . Reprogrammed . | . . . . . Reused . | . . . . . Traps Extracted . | . . . . . Installed . | . . . . . Triggered . | . . . . . Machines | -11 -10 -10 -8 -8 ---------- Run | Yrd Mat Sub Rec Scr Machines Disabled 3 | . . 3 . . Max in Single Turn 2 | . . 2 . . Machines Repaired . | . . . . . Machines Dismantled . | . . . . . Machines Sabotaged . | . . . . . Overloaded Fab Kills . | . . . . . Hacking | -11 -10 -10 -8 -8 --------- Run | Yrd Mat Sub Rec Scr Machines Accessed 10 | . 4 1 1 4 Terminals 3 | . 3 . . . Fabricators . | . . . . . Repair Stations . | . . . . . Recycling Units 2 | . 1 . 1 . Scanalyzers . | . . . . . Garrison Access . | . . . . . Total Hacks 44 | . 16 1 2 25 Successful 35 | . 7 1 2 25 Failed 9 | . 9 . . . Catastrophic 1 | . 1 . . . Database Lockouts . | . . . . . Manual 8 | . 7 . 1 . Terminals 13 | . 13 . . . Fabricators . | . . . . . Repair Stations . | . . . . . Recycling Units 5 | . 3 . 2 . Scanalyzers . | . . . . . Garrison Access . | . . . . . Terminal Hacks 32 | . 6 1 . 25 Record 16 | . . . . 16 Robot Analysis 9 | . 1 . . 8 Prototype ID Bank 1 | . 1 . . . Terminal Index 1 | . 1 . . . Locate Traps 1 | . 1 . . . Maintenance Status 1 | . 1 . . . Registered Components 1 | . 1 . . . Derelict Proto ID Bank 2 | . . 1 . 1 Fabricator Hacks . | . . . . . Repair Station Hacks . | . . . . . Recycling Unit Hacks 1 | . . . 1 . Retrieve Components 1 | . . . 1 . Scanalyzer . | . . . . . Garrison Access Hacks . | . . . . . Unauthorized Hacks 2 | . 1 . 1 . Terminals 1 | . 1 . . . Botnet 1 | . 1 . . . Fabricators . | . . . . . Repair Stations . | . . . . . Recycling Units 1 | . . . 1 . Recyclers 1 | . . . 1 . Scanalyzers . | . . . . . Garrison Access . | . . . . . Data Cores Recovered . | . . . . . Used . | . . . . . Hacking Detections 4 | . 4 . . . Full Trace Events 1 | . 1 . . . Feedback Events . | . . . . . Feedback Blocked . | . . . . . Robot Schematics Acquired . | . . . . . Robots Built . | . . . . . Authchips . | . . . . . Time . | . . . . . Total Robot Build Rating . | . . . . . Part Schematics Acquired . | . . . . . Parts Built . | . . . . . Authchips . | . . . . . Time . | . . . . . Total Part Build Rating . | . . . . . Parts Repaired . | . . . . . Time . | . . . . . Parts Recycled . | . . . . . Recycled Matter . | . . . . . Retrieved Matter . | . . . . . Retrieved Components 3 | . . . 3 . Parts Scanalyzed . | . . . . . Part Schematics Acquired . | . . . . . Parts Damaged . | . . . . . Bothacking | -11 -10 -10 -8 -8 ------------ Run | Yrd Mat Sub Rec Scr Used RIF Installer . | . . . . . Robots Hacked . | . . . . . Non-combat . | . . . . . Combat . | . . . . . Robot Hacks Applied . | . . . . . Relay Couplers Released . | . . . . . Fabnet Peak Effective % . | . . . . . Robots Rewired . | . . . . . Allies Hacked . | . . . . . Hacks Repelled . | . . . . . Allies | -11 -10 -10 -8 -8 -------- Run | Yrd Mat Sub Rec Scr Total Allies . | . . . . . Largest Group . | . . . . . Highest-Rated Group . | . . . . . Highest-Rated Ally . | . . . . . Total Orders . | . . . . . Ally Attacks . | . . . . . Total Damage . | . . . . . Kills . | . . . . . Allies Corrupted . | . . . . . Allies Melted . | . . . . . Intel | -11 -10 -10 -8 -8 ------- Run | Yrd Mat Sub Rec Scr Robot Analysis Total 9 | . 1 . . 8 Derelict Logs Recovered 4 | . . 1 . 3 Drone Launches . | . . . . . Drone Recoveries . | . . . . . Exploration | -11 -10 -10 -8 -8 ------------- Run | Yrd Mat Sub Rec Scr Turns Passed 6396 | 6 1765 2460 378 1787 Spaces Moved 2486 | 2 635 961 157 731 Core . | . . . . . Treads 2486 | 2 635 961 157 731 Legs . | . . . . . Wheels . | . . . . . Hover . | . . . . . Flight . | . . . . . Fastest Speed 160 | 160 160 240 240 240 Average Speed 220 | 160 163 240 240 240 Slowest Speed 240 | 160 240 240 240 240 Overloaded Moves . | . . . . . Propulsion Burnouts . | . . . . . Robots Hopped . | . . . . . Cave-ins Triggered . | . . . . . Exploration Rate (%) 48 | 2 98 44 49 50 Regions Visited 4 Branch Regions 3 Pre-discovered Areas 6 | . . 2 . 4 Known Exits Taken . | . . . . . Unknown Exits Taken 4 | 1 1 1 1 . Scrap Searched 5 | . . 5 . . Spaces Dug 2 | . . . . 2 Terrain Destroyed 2 | . . . . 2 Melee . | . . . . . Projectile 2 | . . . . 2 AOE . | . . . . . Terrain Rammed . | . . . . . Walls Destroyed . | . . . . . Machines Disabled . | . . . . . Actions | -11 -10 -10 -8 -8 --------- Run | Yrd Mat Sub Rec Scr Total 3227 | 5 1274 1035 159 754 Wait 574 | . 559 5 . 10 Move 2482 | 1 634 960 156 731 Hop . | . . . . . Pick Up 35 | . 21 10 3 1 Fast Attach 7 | . 5 1 . 1 Attach 8 | . 1 6 . 1 Detach . | . . . . . Swap 6 | 2 1 3 . . Drop 18 | 2 6 8 . 2 Fire 93 | . 47 42 . 4 Melee . | . . . . . Ram . | . . . . . Kick . | . . . . . Crush 4 | . . . . 4 Escape Stasis . | . . . . . Rewire . | . . . . . Trap . | . . . . . Miscellaneous . | . . . . . Route ------- -11/Scrapyard -10/Materials (discovered 6 exits: [*Mat x3] / [*Min x2] / *Sub) -10/Subcaves (discovered 2 exits: [*Mat] / *Rec) -8/Recycling -8/Scraptown History --------- Turn | Location | Event 6 | -11/Scrapyard | Discovered new exit (range 1) 7 | -11/Scrapyard | Entered Materials 316 | -10/Materials | Build established: Mutant 318 | -10/Materials | Discovered new exit (range 3) 385 | -10/Materials | Discovered new exit (range 14) 556 | -10/Materials | Discovered new exit (range 9) 871 | -10/Materials | Discovered new exit (range 12) 1025 | -10/Materials | Discovered new exit (range 5) 1748 | -10/Materials | Discovered new exit (range 6) 1772 | -10/Materials | Entered Subcaves 2391 | -10/Subcaves | Visited 4L-MR0's lab 2418 | -10/Subcaves | Found Gun Armor 2606 | -10/Subcaves | Shifting Twisted Machinery released Flamer 2895 | -10/Subcaves | Discovered new exit (range 7) 3303 | -10/Subcaves | A swath of the cavern ceiling suddenly collapsed 3313 | -10/Subcaves | Learned location of Zion (-6) 3313 | -10/Subcaves | Met a Zionite searching for "candidates" 3352 | -10/Subcaves | Shifting Twisted Machinery released Battle Cannon 3358 | -10/Subcaves | Shifting Twisted Machinery released Mak. Kinetic Plating 3391 | -10/Subcaves | Disturbed a concealed Subdweller 3750 | -10/Subcaves | Attached Gun Armor, gained temporary slots: Weapon x2 3978 | -10/Subcaves | Core integrity fell below 50% 3997 | -10/Subcaves | Discovered new exit (range 16) 4055 | -10/Subcaves | Build established: Gunner 4232 | -10/Subcaves | Entered Recycling 4550 | -8/Recycling | Scanned before Scraplab entrance 4583 | -8/Recycling | Entered Scraplab 4603 | -8/Recycling | Discovered new exit (range 3) 4610 | -8/Recycling | Entered Scraptown 4879 | -8/Scraptown | Visited Bundlers 4932 | -8/Scraptown | Heard Great Nut preacher, LISTEN AND RECITE! 4942 | -8/Scraptown | Scanned Subdweller tech in exchange for log data 4954 | -8/Scraptown | Learned location of 1 exit from Factory 4956 | -8/Scraptown | Learned location of Testing (-3) 5076 | -8/Scraptown | Visited UFD Registry 5076 | -8/Scraptown | Registered with UFD as "Cryobank" 5177 | -8/Scraptown | Visited Research Penetration Think Tank 5234 | -8/Scraptown | Visited Chapter 10 5321 | -8/Scraptown | Visited Science Testing Area 5364 | -8/Scraptown | Visited Cartography Club 5450 | -8/Scraptown | Visited A0-MCA Data Center 5465 | -8/Scraptown | Given a B- rating by A0-MCA 5473 | -8/Scraptown | Found A0-MCA's Component Scanner 5517 | -8/Scraptown | Visited Analyses Database 5567 | -8/Scraptown | Visited Scrapoid Research Area 5762 | -8/Scraptown | Visited Science Guys 5841 | -8/Scraptown | Visited Curators Association 5927 | -8/Scraptown | Visited Junk Repository 6004 | -8/Scraptown | Visited Symbiants 6090 | -8/Scraptown | Visited Assassins FH 6124 | -8/Scraptown | Visited Red Mages 6352 | -8/Scraptown | Attacked by Scraptown defenders 6356 | -8/Scraptown | Learned location of Storage (-8) 6356 | -8/Scraptown | Learned location of Upper Caves (-5) 6356 | -8/Scraptown | Learned location of Archives (-6) 6356 | -8/Scraptown | Learned 8 Factory zone layouts 6356 | -8/Scraptown | Learned 8 Upper Caves zone layouts 6356 | -8/Scraptown | Learned 12 Upper Caves zone layouts 6356 | -8/Scraptown | Learned 16 Proximity Caves zone layouts 6356 | -8/Scraptown | Learned 20 Proximity Caves zone layouts 6356 | -8/Scraptown | Learned 4 Armory zone layouts 6356 | -8/Scraptown | Learned Research emergency access door positions 6356 | -8/Scraptown | Learned location of 1 exit from Proximity Caves 6356 | -8/Scraptown | Learned location of 3 exits from Proximity Caves 6386 | -8/Scraptown | Found Surveybot 17 Chip 6394 | -8/Scraptown | Core integrity fell below 20% 6397 | -8/Scraptown | Destroyed by 3N-AWM(x) with Makeshift Spear Last Messages --------------- 06356_ Slammed into GS-7LW(x). 06357_ Battle Cannon destroyed. 06360_ Bolt penetrates Wall. 06378_ Slammed into 3N-AWM(x). 06378_ Bolt penetrates Wall. 06379_ Beam Cannon destroyed. 06380_ Slammed into 3N-AWM(x). 06380_ Bolt penetrates Wall. 06383_ Slammed into 3N-AWM(x). 06384_ Bolt penetrates Wall. 06384_ Assault Cannon destroyed. 06385_ Discarded Gun Armor. 06386_ Temporary Weapon slot lost. 06386_ Acquired Surveybot 17 Chip. 06386_ Bolt penetrates Wall. 06387_ Wall collapses. 06388_ Critical hit (Impale). 06388_ Lgt. Treads destroyed. 06390_ BS-3W8(h): "Defend Scraptown!" 06397_ Imp. Treads destroyed. Map ----- +----------------------------------------------------+ | | | | | ?????????????????????????????????????????????????? | | ?????????????????????????????????????????????????? | | ?????????????????????????????????????????????????? | | ?????????????????????????????????????????????????? | | ?????????????????????????????????????????????????? | | ?????????????????????????????????????????????????? | | ?????????????????????????????????????????????????? | | ?????????????????????????????????????????????????? | | ?????????????????????????????????????????????????? | | ?????????????????????????????????????????????????? | | ?????????????????????????????????????????????????? | | ?????????????????????????????????????????????????? | | ?????????????????????????????????????????????????? | | ?????????????????????????????????????????????????? | | ?????????????????????????????????????????????????? | | ?????????????????????????????????????????????????? | | ?????????????????????????????????????????????????? | | ?????????????????????????????????????????????????? | | ?????????????????????????????????????????????????? | | ?????????????????????????????????????????????????? | | ?????????????? ?????????????????????????????????? | | ###??????????? ???????????###???????????????????? | | ""#??????????? ????????#### #???????????????????? | | ##?########### #???????#@[# #???????????????????? | | #?# # #???????#xx# #???????????????????? | | #?# # #?????###h #???????????????????? | | #?# # #?????#X#;## #???????????????????? | | #?# # #?????#"# ####???????????????????? | | #?# # #?????# #???????????????????? | | #?# # ####### ######???????????????????? | | #### # # #???????????????????? | | ## # # #???????????????????? | | ######## ##### ## ###########???????????????????? | | ######## ##### ## #############?????????????????? | | """""""" """"" "" "## """""""""#????????????????? | | "## ""!""""""#????????????????? | | "## """""""""#????????????????? | | "## """"#????????????????? | | "## """"#????????????????? | | " = """"#????????????????? | | """""""""""""" "## """""""""#????????????????? | | """""""""""""" "## """""""""#????????????????? | | ############"" "##""""""""""#????????????????? | | ???????????#"" "#############????????????????? | | ???????????#"" "## """"#????????????????????? | | ???????????#"" "## " "#????????????????????? | | ?????????###"" "## X"#????????????????????? | | ???####### #"" "## "#????????????????????? | +----------------------------------------------------+ Best States ------------- Heat Dissipation 25 Energy Generation 10 Energy Capacity 250 Matter Stores 300 Matter Capacity 300 Sight Range 16 Terrain Scan Density 1210 Armor Coverage 150 Evasion (%) 40 Recoil Reduction 2 Item Schematics ----------------- None Robot Schematics ------------------ None Fabricated ------------ Nothing Alien Tech Used ----------------- None Achievements -------------- None Challenges ------------ None Game ------ Seed SiegeGuidedTearclaws Manual? 0 Play Time 00:27:10 Cumulative 129.5 hours Start 2024.08.10 @ 21:52:57 End 2024.08.10 @ 22:21:50 Sessions 1 Manual Loads 0 Difficulty Rogue Special Mode None Game No. 115 Rogue 115 Adventurer 0 Explorer 0 Win Type - Total 4 Types 2/0/2/0/0/0/0/0/0 Lore% 63 Gallery% 60 Achievement% 56 Wizard Run 0 Options --------- Layout 0 ASCII 0 Keyboard 0 Movement Arrows Keybinds 0 Fullscreen 2 Font 18/SmallcapsGlow Map View 76x50 Zoom Use 0% Tactical HUD 1 Map Filters NONE Filters NONE Steam 1 RUN: f3106dd4-5577-4628-84b7-a4d226dc89eb